bitfinex/quotes_BTCUSD_20251226
["timestamp","ask_amount","ask_price","bid_price","bid_amount"]
[1766728094744,0.010181,88940.0,88937.0,0.01124391]
[1766728095286,0.010181,88940.0,88936.0,0.01124404]
[1766728095919,0.010181,88940.0,88937.0,0.01124391]
[1766728096324,0.010181,88940.0,88936.0,0.01124404]
[1766728097082,0.11061561,88947.0,88940.0,0.01124353]
[1766728097083,0.01128,88944.0,88940.0,0.01124353]
[1766728097246,0.0002,88948.0,88943.0,0.13542315]
[1766728097455,0.0002,88948.0,88943.0,0.12418]
[1766728097953,0.02424534,88954.0,88947.0,0.01124265]
[1766728098127,0.01128,88960.0,88952.0,0.01124201]
[1766728098449,0.01128,88961.0,88953.0,0.13542189]
[1766728098649,0.02252088,88961.0,88953.0,0.123631]
[1766728098846,0.01128,88961.0,88953.0,0.123631]
[1766728099349,0.01128,88961.0,88946.0,0.01124277]
[1766728099350,0.0113284,88961.0,88947.0,0.12418]
[1766728099553,0.00055,88947.0,88938.0,0.01124378]
[1766728099754,0.05961,88946.0,88933.0,0.12418]
[1766728100055,0.07085277,88946.0,88934.0,0.01124429]
[1766728100258,0.01128,88945.0,88930.0,0.01124479]
[1766728100458,0.05961,88944.0,88934.0,0.01124429]
[1766728100673,0.01124315,88943.0,88934.0,0.01124429]
[1766728100958,0.05961,88944.0,88933.0,0.01124441]
[1766728101120,0.05961,88944.0,88934.0,0.01124429]
[1766728101525,0.01124315,88943.0,88934.0,0.01124429]
[1766728101725,0.05961,88944.0,88934.0,0.0674656]
[1766728102039,0.05961,88944.0,88940.0,0.01124353]
[1766728102239,0.05961,88957.0,88943.0,0.05621521]
[1766728102439,0.01128,88956.0,88947.0,0.01124265]
[1766728102646,0.02252151,88956.0,88946.0,0.01124277]
[1766728102844,0.05961,88957.0,88947.0,0.01124265]
[1766728103090,0.01128,88956.0,88947.0,0.12418]
[1766728103280,0.01124163,88955.0,88947.0,0.12418]
[1766728103415,0.00055,88947.0,88941.0,0.0225234]
[1766728103615,0.00055,88947.0,88942.0,0.01124328]
[1766728103813,0.06745068,88954.0,88941.0,0.0225234]
[1766728103814,0.06745068,88954.0,88941.0,0.01128]
[1766728104036,0.01124201,88952.0,88942.0,0.01124328]
[1766728104241,0.01124214,88951.0,88941.0,0.0225234]
[1766728104441,0.01124189,88953.0,88941.0,0.07874003]
[1766728104766,0.01124189,88953.0,88943.0,0.01124315]
[1766728104920,0.01124201,88952.0,88942.0,0.01124328]
[1766728105356,0.01124189,88953.0,88944.0,0.01124302]
[1766728105556,0.01124176,88954.0,88944.0,0.01124302]
[1766728105755,0.01124163,88955.0,88944.0,0.01124302]
[1766728105964,0.01124176,88954.0,88945.0,0.0112429]
[1766728106279,0.13833917,88956.0,88945.0,0.0112429]
[1766728106280,0.01128,88956.0,88948.0,0.01124252]
[1766728106472,0.01128,88956.0,88951.0,0.12418]
[1766728106772,0.02252151,88956.0,88946.0,0.01124277]
[1766728107273,0.02252151,88956.0,88947.0,0.01124265]
[1766728107635,0.02252151,88956.0,88940.0,0.01124353]
[1766728107636,0.01124189,88953.0,88940.0,0.01124353]
[1766728107841,0.06016,88951.0,88942.0,0.01124328]
[1766728108238,0.06016,88951.0,88944.0,0.01124302]
[1766728108631,0.06016,88951.0,88942.0,0.01124328]
[1766728108830,0.04892,88949.0,88940.0,0.01124353]
[1766728109031,0.04892,88949.0,88938.0,0.01124378]
[1766728109270,0.04892,88949.0,88940.0,0.01124353]
[1766728109475,0.04892,88949.0,88939.0,0.01124366]
[1766728109476,0.06016239,88949.0,88939.0,0.01124366]
[1766728109880,0.0602,88949.0,88939.0,0.00497237]
[1766728110062,0.0602,88949.0,88941.0,0.0112434]
[1766728110263,0.0602,88949.0,88940.0,0.01124353]
[1766728110465,0.0602,88949.0,88941.0,0.0112434]
[1766728110801,0.059651,88949.0,88941.0,0.0112434]
[1766728110998,0.059651,88949.0,88942.0,0.01124328]
[1766728111204,0.059651,88949.0,88940.0,0.01124353]
[1766728111410,0.059651,88949.0,88939.0,0.06119031]
[1766728111411,0.059651,88949.0,88939.0,0.01124366]
[1766728111703,0.07089339,88949.0,88939.0,0.01124366]
[1766728111877,0.059651,88949.0,88941.0,0.0112434]
[1766728112869,0.059651,88949.0,88940.0,0.01124353]
[1766728113270,0.059651,88949.0,88742.0,0.00011874]
[1766728113271,0.01124404,88936.0,88918.0,0.01800889]
[1766728113470,0.01179253,88940.0,88918.0,0.01800889]
[1766728113471,0.01124391,88937.0,88928.0,0.01124505]
[1766728113677,0.01124378,88938.0,88927.0,0.01124517]
[1766728113886,0.01124378,88938.0,88926.0,0.12418]
[1766728113887,0.01124404,88936.0,88926.0,0.12418]
[1766728114083,0.01124404,88936.0,88926.0,0.1354253]
[1766728114287,0.01124366,88939.0,88928.0,0.01124505]
[1766728114814,0.01124366,88939.0,88929.0,0.01124492]
[1766728115196,0.40094995,88940.0,88930.0,0.01124479]
[1766728115400,0.40094995,88940.0,88929.0,0.01124492]
[1766728115401,0.41219348,88940.0,88929.0,0.01124492]
[1766728116031,0.01124366,88939.0,88930.0,0.01124479]
[1766728116213,0.01124366,88939.0,88929.0,0.01124492]
[1766728116384,0.41219348,88940.0,88930.0,0.01124479]
[1766728116945,0.41219348,88940.0,88931.0,0.01124467]
[1766728117441,0.41219348,88940.0,88930.0,0.01124479]
[1766728117649,0.0112434,88941.0,88930.0,0.01124479]
[1766728117793,0.41219348,88940.0,88929.0,0.01124492]
[1766728117993,0.40094995,88940.0,88930.0,0.01124479]
[1766728118364,0.41219348,88940.0,88931.0,0.01124467]
[1766728118647,0.41219348,88940.0,88930.0,0.01124479]
[1766728119244,0.41219348,88940.0,88929.0,0.01124492]
[1766728119921,0.41219348,88940.0,88931.0,0.01124467]
[1766728120107,0.41219348,88940.0,88930.0,0.01124479]
[1766728120311,0.01124366,88939.0,88929.0,0.01124492]
[1766728121125,0.40094995,88940.0,88930.0,0.05622399]
[1766728121331,0.40094995,88940.0,88932.0,0.01124454]
[1766728121708,0.41219348,88940.0,88930.0,0.01124479]
[1766728121905,0.40094995,88940.0,88931.0,0.01124467]
[1766728122147,0.40094995,88940.0,88932.0,0.01124454]
[1766728122807,0.01800889,88939.0,88931.0,0.13319467]
[1766728123010,0.01800889,88939.0,88932.0,0.01124454]
[1766728123466,0.41222995,88942.0,88932.0,0.01124454]
[1766728123467,0.01128,88942.0,88939.0,0.00055]
[1766728123645,0.01128,88942.0,88934.0,0.01124429]
[1766728123851,0.01128,88942.0,88936.0,0.01124404]
[1766728124635,0.01073,88942.0,88937.0,0.01124391]
[1766728124846,0.01128,88942.0,88938.0,0.01124378]
[1766728125240,0.01124252,88948.0,88939.0,0.01124366]
[1766728125448,0.01128,88947.0,88940.0,0.13398353]
[1766728125977,0.01128,88948.0,88940.0,0.13398353]
[1766728126481,0.01128,88948.0,88940.0,0.12274]
[1766728126482,0.01124265,88947.0,88940.0,0.12274]
[1766728126646,0.02252252,88948.0,88940.0,0.12274]
[1766728126864,0.01128,88948.0,88940.0,0.12274]
[1766728127043,0.01128,88948.0,88941.0,0.0112434]
[1766728127261,0.01128,88948.0,88941.0,0.12274]
[1766728127736,0.02252252,88948.0,88941.0,0.12274]
[1766728128561,0.01128,88948.0,88941.0,0.12274]
[1766728128759,0.01128,88948.0,88941.0,0.1339834]
[1766728129231,0.40094995,88950.0,88942.0,0.01124328]
[1766728129438,0.41222995,88950.0,88942.0,0.01124328]
[1766728130203,0.41222995,88950.0,88941.0,0.1339834]
[1766728130613,0.01124252,88948.0,88941.0,0.12274]
[1766728130857,0.01124302,88944.0,88941.0,0.111461]
[1766728131439,0.01124252,88948.0,88941.0,0.111461]
[1766728131650,0.0112429,88945.0,88941.0,0.111461]
[1766728131962,0.05621383,88947.0,88941.0,0.111461]
[1766728132529,0.01124277,88946.0,88941.0,0.111461]
[1766728132761,0.01124265,88947.0,88941.0,0.111461]
[1766728133601,0.07873423,88950.0,88941.0,0.111461]
[1766728134555,0.01124239,88949.0,88941.0,0.111461]
[1766728134965,0.02252227,88950.0,88941.0,0.111461]
[1766728136161,0.02252227,88950.0,88941.0,0.1227044]
[1766728136416,0.02252227,88950.0,88941.0,0.111461]
[1766728136623,0.01128,88950.0,88942.0,0.01124328]
[1766728136747,0.01128,88950.0,88942.0,0.13398328]
[1766728136948,0.01128,88950.0,88942.0,0.12274]
[1766728137793,0.01128,88950.0,88942.0,0.13398328]
[1766728138467,0.01128,88950.0,88942.0,0.12274]
[1766728138768,0.01128,88950.0,88942.0,0.13398328]
[1766728139124,0.02252227,88950.0,88942.0,0.12274]
[1766728139734,0.01128,88950.0,88942.0,0.12274]
[1766728139880,0.01128,88950.0,88943.0,0.01124315]
[1766728140682,0.01128,88950.0,88942.0,0.12274]
[1766728140901,0.01128,88950.0,88942.0,0.13398328]
[1766728141083,0.01128,88952.0,88944.0,0.12274]
[1766728141467,0.02252201,88952.0,88944.0,0.12274]
[1766728141665,0.01124214,88951.0,88944.0,0.12274]
[1766728142335,0.05620912,88954.0,88944.0,0.12274]
[1766728142617,0.01124214,88951.0,88944.0,0.12274]
[1766728142836,0.01124214,88951.0,88940.0,0.02252353]
[1766728142837,0.01124239,88949.0,88940.0,0.01128]
[1766728142996,0.00055,88944.0,88940.0,0.01128]
[1766728143403,0.01124252,88948.0,88940.0,0.01128]
[1766728143927,0.57313388,88950.0,88937.0,0.12274]
[1766728143928,0.0112429,88945.0,88937.0,0.12274]
[1766728144106,0.50567995,88950.0,88938.0,0.01124378]
[1766728144107,0.11597239,88949.0,88938.0,0.01124378]
[1766728144290,0.01124252,88948.0,88939.0,0.01124366]
[1766728144485,0.11597239,88949.0,88940.0,0.01124353]
[1766728144689,0.10473,88949.0,88940.0,0.01124353]
[1766728145288,0.11597239,88949.0,88940.0,0.01124353]
[1766728145497,0.11597239,88949.0,88939.0,0.01124366]
[1766728145734,0.01124252,88948.0,88938.0,0.01124378]
[1766728146942,0.01124265,88947.0,88937.0,0.14526391]
[1766728147244,0.01128,88950.0,88947.0,0.000549]
[1766728147749,0.01128,88950.0,88942.0,0.01124328]
[1766728147949,0.01128,88954.0,88947.0,0.12274]
[1766728148107,0.01124201,88952.0,88947.0,0.12274]
[1766728148308,0.01124214,88951.0,88942.0,0.01124328]
[1766728148631,0.01124214,88951.0,88941.0,0.1339834]
[1766728149024,0.01124214,88951.0,88942.0,0.01124328]
[1766728149242,0.11651,88951.0,88938.0,0.01124378]
[1766728149446,0.00055,88938.0,88937.0,0.01128]
[1766728149645,0.0112429,88945.0,88933.0,0.13398441]
[1766728149987,0.0112429,88945.0,88935.0,0.01124416]
[1766728150137,0.12775265,88947.0,88937.0,0.01124391]
[1766728150745,0.11651,88947.0,88938.0,0.01124378]
[1766728151167,0.01124277,88946.0,88936.0,0.01124404]
[1766728151564,0.12775265,88947.0,88937.0,0.01124391]
[1766728151765,0.01124277,88946.0,88934.0,0.01128]
[1766728152080,0.01124302,88944.0,88934.0,0.02252429]
[1766728152495,0.01124277,88946.0,88936.0,0.01124404]
[1766728152893,0.0112429,88945.0,88935.0,0.01124416]
[1766728153058,0.01124302,88944.0,88934.0,0.02252429]
[1766728153255,0.01124302,88944.0,88935.0,0.01124416]
[1766728153487,0.0112429,88945.0,88935.0,0.01124416]
[1766728153986,0.01124277,88946.0,88936.0,0.01124404]
[1766728155187,0.00072,88938.0,88936.0,0.01124404]
[1766728155391,0.000171,88938.0,88935.0,0.01124416]
[1766728156106,0.000171,88938.0,88936.0,0.05621988]
[1766728157907,1e-06,88938.0,88937.0,0.1127]
[1766728158118,1e-06,88938.0,88937.0,0.13070889]
[1766728159004,0.01128,88955.0,88946.0,0.10500246]
[1766728159479,0.01124176,88954.0,88946.0,0.09375969]
[1766728159701,0.01124176,88954.0,88945.0,0.0112429]
[1766728159702,0.02252163,88955.0,88945.0,0.0112429]
[1766728160174,0.02252163,88955.0,88946.0,0.01124277]
[1766728160392,0.01128,88955.0,88946.0,0.01124277]
[1766728160542,0.01128,88955.0,88944.0,0.01124302]
[1766728160743,0.12412,88953.0,88943.0,0.01124315]
[1766728160965,0.12412,88953.0,88944.0,0.01124302]
[1766728161277,0.12412,88953.0,88945.0,0.0112429]
[1766728161647,0.12412,88953.0,88946.0,0.01124277]
[1766728162348,0.12412,88953.0,88945.0,0.0112429]
[1766728163723,0.01128,88955.0,88945.0,0.0112429]
[1766728164272,0.01128,88955.0,88946.0,0.01124277]
[1766728164626,0.01128,88955.0,88945.0,0.0112429]
[1766728164787,0.02252163,88955.0,88946.0,0.01124277]
[1766728165034,0.02252163,88955.0,88945.0,0.0112429]
[1766728165199,0.12412,88954.0,88945.0,0.0112429]
[1766728165753,0.12412,88954.0,88946.0,0.01124277]
[1766728166038,0.12412,88954.0,88945.0,0.0112429]
[1766728166540,0.12412,88954.0,88946.0,0.01124277]
[1766728167434,0.12412,88954.0,88944.0,0.01124302]
[1766728167645,0.01128,88955.0,88946.0,0.01124277]
[1766728167935,0.01128,88955.0,88946.0,0.12394277]
[1766728168357,0.01128,88956.0,88950.0,0.1127]
[1766728168908,0.02252151,88956.0,88950.0,0.1127]
[1766728169288,0.02252151,88956.0,88946.0,0.12394277]
[1766728169454,0.01124163,88955.0,88946.0,0.1127]
[1766728170183,0.01124189,88953.0,88946.0,0.1127]
[1766728170770,0.01124227,88950.0,88942.0,0.01128]
[1766728170934,0.05621153,88950.0,88942.0,0.01128]
[1766728171169,0.01124239,88949.0,88942.0,0.01128]
[1766728171763,0.13536227,88950.0,88942.0,0.010731]
[1766728171964,0.01124252,88948.0,88936.0,0.01128]
[1766728172421,0.12412,88945.0,88936.0,0.01128]
[1766728172597,0.1353629,88945.0,88936.0,0.01128]
[1766728173101,0.1353629,88945.0,88936.0,0.02252404]
[1766728173102,0.12412,88945.0,88936.0,0.02252404]
[1766728173301,0.12412,88945.0,88937.0,0.01124391]
[1766728173515,0.01124302,88944.0,88936.0,0.01128]
[1766728173720,0.1353629,88945.0,88936.0,0.01128]
[1766728174418,0.12412,88945.0,88936.0,0.02252404]
[1766728174619,0.1353629,88945.0,88936.0,0.01128]
[1766728175119,0.12412,88945.0,88936.0,0.02252404]
[1766728175279,0.12412,88945.0,88936.0,0.01128]
[1766728175630,0.01124302,88944.0,88936.0,0.01128]
[1766728175825,0.1353629,88945.0,88931.0,0.01124467]
[1766728175826,0.00055,88936.0,88931.0,0.01124467]
[1766728176191,0.19158002,88942.0,88931.0,0.01124467]
[1766728176192,0.0112434,88941.0,88931.0,0.01124467]
[1766728176407,0.19158002,88942.0,88932.0,0.01124454]
[1766728176610,0.13536328,88942.0,88933.0,0.01124441]
[1766728176987,0.13536328,88942.0,88932.0,0.01124454]
[1766728177332,0.0112434,88941.0,88931.0,0.01124467]
[1766728177825,0.0112434,88941.0,88932.0,0.01124454]
[1766728179137,0.0112434,88941.0,88931.0,0.01124467]
[1766728179138,0.13536328,88942.0,88931.0,0.01124467]
[1766728179296,0.13536328,88942.0,88932.0,0.01124454]
[1766728179638,0.12412,88942.0,88931.0,0.01124467]
[1766728179786,0.01124353,88940.0,88930.0,0.01124479]
[1766728180129,0.01124353,88940.0,88931.0,0.01124467]
[1766728180499,0.12412,88942.0,88932.0,0.01124454]
[1766728180918,0.13536328,88942.0,88933.0,0.01124441]
[1766728181225,0.13536328,88942.0,88930.0,0.01124479]
[1766728181420,0.40085237,88940.0,88931.0,0.01124467]
[1766728181912,0.40085237,88940.0,88932.0,0.01124454]
[1766728182505,0.01128,88946.0,88940.0,0.000549]
[1766728182721,0.01124302,88944.0,88932.0,0.01124454]
[1766728182911,0.0112429,88945.0,88935.0,0.01124416]
[1766728183237,0.0112429,88945.0,88934.0,0.01124429]
[1766728183444,0.01124302,88944.0,88934.0,0.01124429]
[1766728183638,0.0112429,88945.0,88936.0,0.01124404]
[1766728183838,0.0112429,88945.0,88935.0,0.01124416]
[1766728184410,0.02252277,88946.0,88935.0,0.01124416]
[1766728184819,0.0112429,88945.0,88935.0,0.01124416]
[1766728185013,0.01124277,88946.0,88936.0,0.01124404]
[1766728185219,0.0112429,88945.0,88935.0,0.01124416]
[1766728185949,0.01124277,88946.0,88936.0,0.01124404]
[1766728186755,0.0112429,88945.0,88935.0,0.01124416]
[1766728187059,0.0112429,88945.0,88936.0,0.01124404]
[1766728187258,0.0112429,88945.0,88934.0,0.06746545]
[1766728187561,0.01128,88947.0,88937.0,0.11345]
[1766728187720,0.01128,88947.0,88938.0,0.01124378]
[1766728188770,0.01128,88947.0,88939.0,0.01124366]
[1766728189469,0.01128,88947.0,88938.0,0.01124378]
[1766728190271,0.01128,88947.0,88937.0,0.01124391]
[1766728190642,0.02252265,88947.0,88938.0,0.01124378]
[1766728190848,0.01128,88947.0,88938.0,0.01124378]
[1766728191236,0.01128,88947.0,88939.0,0.01124366]
[1766728191439,0.01128,88947.0,88938.0,0.01124378]
[1766728192298,0.01128,88947.0,88939.0,0.01124366]
[1766728193121,0.01128,88947.0,88938.0,0.01124378]
[1766728194408,0.01128,88947.0,88939.0,0.01124366]
[1766728194647,0.01128,88947.0,88938.0,0.01124378]
[1766728196438,0.01124252,88948.0,88938.0,0.01124378]
[1766728196746,0.01128,88946.0,88938.0,0.01124378]
[1766728198578,0.01128,88946.0,88939.0,0.01124366]
[1766728198851,0.01128,88946.0,88938.0,0.01124378]
[1766728199377,0.01128,88946.0,88937.0,0.01124391]
[1766728199522,0.01128,88946.0,88938.0,0.01124378]
[1766728200126,0.01128,88946.0,88935.0,0.01124416]
[1766728200325,0.01128,88946.0,88937.0,0.01124391]
[1766728200544,0.01128,88946.0,88938.0,0.01124378]
[1766728201124,0.02252277,88946.0,88937.0,0.01124391]
[1766728201357,0.01128,88946.0,88938.0,0.01124378]
[1766728202455,0.01128,88946.0,88937.0,0.01124391]
[1766728202825,0.01128,88946.0,88938.0,0.01124378]
[1766728203026,0.0112429,88945.0,88933.0,0.16967161]
[1766728203233,0.0112429,88945.0,88933.0,0.12469441]
[1766728203475,0.0112429,88945.0,88935.0,0.01124416]
[1766728203643,0.02252277,88946.0,88936.0,0.01124404]
[1766728203852,0.01128,88946.0,88938.0,0.01124378]
[1766728204049,0.01128,88946.0,88936.0,0.01124404]
[1766728204256,0.01128,88946.0,88937.0,0.01124391]
[1766728204609,0.01128,88946.0,88936.0,0.01124404]
[1766728204770,0.02252277,88946.0,88936.0,0.01124404]
[1766728204970,0.02252277,88946.0,88935.0,0.06746461]
[1766728205285,0.01128,88946.0,88938.0,0.01124378]
[1766728205491,0.01128,88946.0,88937.0,0.01124391]
[1766728206080,0.0112429,88945.0,88935.0,0.01124416]
[1766728206259,0.0112429,88945.0,88936.0,0.01124404]
[1766728206444,0.0112429,88945.0,88935.0,0.01124416]
[1766728206647,0.01124302,88944.0,88935.0,0.01124416]
[1766728206943,0.01124429,88934.0,88920.0,0.01124606]
[1766728207147,0.00055,88935.0,88920.0,0.13597606]
[1766728207148,0.17525095,88935.0,88920.0,0.13597606]
[1766728207384,0.01124416,88935.0,88925.0,0.11345]
[1766728207748,0.06746739,88932.0,88925.0,0.11345]
[1766728207944,0.01124454,88932.0,88922.0,0.01124581]
[1766728208151,0.01124441,88933.0,88923.0,0.01124568]
[1766728208371,0.01124454,88932.0,88922.0,0.01124581]
[1766728208543,0.01124454,88932.0,88921.0,0.01124593]
[1766728208544,0.01124467,88931.0,88921.0,0.01124593]
[1766728208747,0.01124454,88932.0,88922.0,0.01124581]
[1766728208974,0.41209691,88932.0,88922.0,0.01124581]
[1766728209383,0.40085237,88932.0,88924.0,0.01124555]
[1766728209783,0.40085237,88932.0,88925.0,0.01124543]
[1766728209980,0.40085237,88932.0,88923.0,0.01124568]
[1766728210195,0.40085237,88932.0,88921.0,0.01124593]
[1766728210395,0.40085237,88932.0,88923.0,0.01124568]
[1766728210778,0.01124467,88931.0,88920.0,0.12473]
[1766728210970,0.05622589,88927.0,88920.0,0.11345]
[1766728211101,0.05622589,88927.0,88912.0,0.12469707]
[1766728211102,0.00055,88920.0,88912.0,0.12469707]
[1766728211299,0.00055,88920.0,88914.0,0.01150335]
[1766728211515,0.40085237,88924.0,88916.0,0.01124656]
[1766728211717,0.40085237,88924.0,88915.0,0.01124669]
[1766728212009,0.0112453,88926.0,88916.0,0.01124656]
[1766728212378,0.41209767,88926.0,88916.0,0.01124656]
[1766728212874,0.01124543,88925.0,88916.0,0.01124656]
[1766728214406,0.13049543,88925.0,88915.0,0.01124669]
[1766728214613,0.11925,88925.0,88916.0,0.01124656]
[1766728215181,0.11925,88925.0,88917.0,0.01124644]
[1766728215339,0.01124555,88924.0,88915.0,0.01124669]
[1766728215546,0.13049543,88925.0,88915.0,0.01124669]
[1766728215743,0.01124555,88924.0,88914.0,0.01150335]
[1766728216344,0.11925,88925.0,88914.0,0.01150335]
[1766728216710,0.13049543,88925.0,88915.0,0.01124669]
[1766728217134,0.5313478,88925.0,88915.0,0.01124669]
[1766728218027,0.01128,88927.0,88917.0,0.05623181]
[1766728218236,0.01128,88927.0,88925.0,0.000549]
[1766728218629,0.01128,88927.0,88919.0,0.01124619]
[1766728218825,0.01128,88927.0,88918.0,0.01124631]
[1766728219668,0.02252517,88927.0,88918.0,0.01124631]
[1766728219968,0.01128,88927.0,88918.0,0.01124631]
[1766728220276,0.0112453,88926.0,88916.0,0.06747901]
[1766728220457,0.02252517,88927.0,88918.0,0.01124631]
[1766728220828,0.01128,88927.0,88918.0,0.01124631]
[1766728221451,0.01128,88927.0,88919.0,0.01124619]
[1766728222046,0.01128,88927.0,88920.0,0.01124606]
[1766728222555,0.01128,88927.0,88919.0,0.01124619]
[1766728222893,0.01124492,88929.0,88919.0,0.01124619]
[1766728223092,0.01128,88928.0,88919.0,0.01124619]
[1766728223297,0.01124517,88927.0,88917.0,0.01124644]
[1766728223593,0.01124543,88925.0,88915.0,0.13479669]
[1766728224019,0.0112453,88926.0,88916.0,0.01124656]
[1766728224223,0.01124517,88927.0,88917.0,0.01124644]
[1766728224428,0.06750563,88928.0,88919.0,0.01124619]
[1766728224429,0.01128,88928.0,88919.0,0.01124619]
[1766728224574,0.01124568,88923.0,88902.0,0.22496487]
[1766728224775,0.01124568,88923.0,88894.0,0.12355]
[1766728224776,0.01124872,88899.0,88894.0,0.12355]
[1766728225013,0.01124846,88901.0,88895.0,0.01128]
[1766728225198,0.01124872,88899.0,88895.0,0.010986]
[1766728225388,0.01124872,88899.0,88896.0,0.01128]
[1766728225628,0.01124859,88900.0,88896.0,0.01128]
[1766728225788,0.05624424,88898.0,88896.0,0.01128]
[1766728225987,0.05624424,88898.0,88894.0,5.653e-05]
[1766728225988,0.05624613,88895.0,88894.0,5.653e-05]
[1766728227189,0.05624613,88895.0,88894.0,5.3e-07]
[1766728227732,0.05624739,88893.0,88892.0,3e-08]
[1766728227901,0.01125023,88887.0,88879.0,0.11881174]
[1766728228102,0.01124985,88890.0,88864.0,0.12355]
[1766728228103,0.0112515,88877.0,88864.0,0.12355]
[1766728228297,0.01125163,88876.0,88866.0,0.12355]
[1766728228520,0.01125201,88873.0,88866.0,0.12355]
[1766728228718,0.05626061,88873.0,88866.0,0.12355]
[1766728228917,0.01125201,88873.0,88866.0,0.12355]
[1766728229313,0.01125188,88874.0,88866.0,0.12355]
[1766728230312,0.01125213,88872.0,88866.0,0.12355]
[1766728230631,0.01125239,88870.0,88866.0,0.12355]
[1766728230955,0.01125226,88871.0,88866.0,0.12355]
[1766728231454,0.01125239,88870.0,88866.0,0.12355]
[1766728231890,0.01125213,88872.0,88861.0,0.01125353]
[1766728232096,0.01125239,88870.0,88860.0,0.13480365]
[1766728232368,0.01125213,88872.0,88860.0,0.13480365]
[1766728232512,0.01125289,88866.0,88860.0,0.12355]
[1766728232712,0.05626702,88862.0,88860.0,0.12355]
[1766728232954,0.01125391,88858.0,88855.0,0.0004]
[1766728233132,0.01125353,88861.0,88855.0,0.0004]
[1766728233354,0.01125391,88858.0,88855.0,0.0004]
[1766728233943,0.01125378,88859.0,88855.0,0.0004]
[1766728234352,0.01125327,88863.0,88855.0,0.0004]
[1766728234558,0.0112534,88862.0,88855.0,0.0004]
[1766728234957,0.0112534,88862.0,88853.0,0.12355]
[1766728234958,0.01125378,88859.0,88853.0,0.12355]
[1766728235919,0.01125378,88859.0,88853.0,0.08862]
[1766728236120,0.01125365,88860.0,88853.0,0.08862]
[1766728236802,0.06752026,88863.0,88853.0,0.08862]
[1766728237006,0.0112534,88862.0,88853.0,0.08862]
[1766728237203,0.01125327,88863.0,88853.0,0.09987454]
[1766728237369,0.0112534,88862.0,88853.0,0.08862]
[1766728238777,0.01125365,88860.0,88853.0,0.08862]
[1766728239182,0.0112534,88862.0,88853.0,0.08862]
[1766728239575,0.01125353,88861.0,88853.0,0.08862]
[1766728239980,0.01125365,88860.0,88853.0,0.08862]
[1766728240201,0.01125378,88859.0,88853.0,0.08862]
[1766728240603,0.01125365,88860.0,88853.0,0.08862]
[1766728240801,0.01125353,88861.0,88853.0,0.08862]
[1766728241629,0.0112534,88862.0,88853.0,0.08862]
[1766728242134,0.01125353,88861.0,88853.0,0.08862]
[1766728242715,0.06752133,88861.0,88850.0,0.0004]
[1766728242920,0.11563,88861.0,88850.0,0.01165492]
[1766728243138,0.01125365,88860.0,88850.0,0.01165492]
[1766728243351,0.01125365,88860.0,88851.0,0.01125479]
[1766728243541,0.12688353,88861.0,88851.0,0.01125479]
[1766728244271,0.11563,88861.0,88851.0,0.01125479]
[1766728244471,0.12688353,88861.0,88851.0,0.01125479]
[1766728244673,0.01800889,88864.0,88855.0,0.01125429]
[1766728245057,0.02926204,88864.0,88861.0,0.0004]
[1766728245217,0.01125327,88863.0,88853.0,0.01125454]
[1766728245618,0.01125353,88861.0,88850.0,0.01165492]
[1766728245819,0.02926204,88864.0,88852.0,0.01125467]
[1766728246026,0.02926204,88864.0,88853.0,0.01125454]
[1766728246958,0.01128,88863.0,88853.0,0.01125454]
[1766728247136,0.02253327,88863.0,88853.0,0.01125454]
[1766728247742,0.12888277,88867.0,88852.0,0.01125467]
[1766728247743,0.01125264,88868.0,88863.0,0.00095]
[1766728247943,0.01125264,88868.0,88856.0,0.01125416]
[1766728247944,0.01800889,88865.0,88860.0,0.12312]
[1766728248145,0.01128,88867.0,88860.0,0.12312]
[1766728248360,0.01800889,88865.0,88860.0,0.12312]
[1766728248969,0.01125327,88863.0,88853.0,0.13437454]
[1766728249271,0.01800889,88865.0,88853.0,0.13437454]
[1766728249472,0.02926191,88865.0,88855.0,0.01125429]
[1766728249965,0.02926191,88865.0,88856.0,0.01125416]
[1766728250528,0.01800889,88865.0,88856.0,0.01125416]
[1766728251456,0.02926191,88865.0,88854.0,0.01125441]
[1766728251795,0.02926191,88865.0,88856.0,0.01125416]
[1766728251956,0.01800889,88865.0,88858.0,0.19064329]
[1766728252170,0.01128,88867.0,88858.0,0.13437391]
[1766728252345,0.01125264,88868.0,88858.0,0.13437391]
[1766728252346,0.02928889,88866.0,88858.0,0.13437391]
[1766728252555,0.02928889,88866.0,88859.0,0.01125378]
[1766728252770,0.02928889,88866.0,88858.0,0.13437391]
[1766728253094,0.01800889,88866.0,88859.0,0.01125378]
[1766728253287,0.02928889,88866.0,88859.0,0.01125378]
[1766728255784,0.02928889,88866.0,88858.0,0.08437391]
[1766728256747,0.02928889,88866.0,88859.0,0.01125378]
[1766728256948,0.02928889,88866.0,88860.0,0.01125365]
[1766728257493,0.02871629,88866.0,88861.0,0.01125353]
[1766728257734,0.02871629,88866.0,88862.0,0.0112534]
[1766728257861,0.02871629,88866.0,88861.0,0.01125353]
[1766728257862,0.01743629,88866.0,88861.0,0.01125353]
[1766728258260,0.01743629,88866.0,88862.0,0.0112534]
[1766728258481,0.01743629,88866.0,88861.0,0.01125353]
[1766728259696,0.01743629,88866.0,88862.0,0.0112534]
[1766728259902,0.01743629,88866.0,88861.0,0.01125353]
[1766728260101,0.01743629,88866.0,88862.0,0.0112534]
[1766728260461,0.01743629,88866.0,88861.0,0.01125353]
[1766728261226,0.08494865,88873.0,88860.0,0.06752151]
[1766728261227,0.04166635,88873.0,88870.0,0.01125239]
[1766728261553,0.01800889,88880.0,88875.0,0.01125175]
[1766728261665,4.11e-06,88883.0,88877.0,0.03262]
[1766728261871,0.01128,88885.0,88877.0,0.0438715]
[1766728262272,0.01148,88887.0,88878.0,0.01125137]
[1766728262714,0.02273023,88887.0,88878.0,0.01125137]
[1766728262889,0.01148,88887.0,88878.0,0.01125137]
[1766728263098,0.02273023,88887.0,88878.0,0.01125137]
[1766728263319,0.01148,88887.0,88879.0,0.01125125]
[1766728263671,0.01148,88887.0,88878.0,0.01125137]
[1766728263871,0.01148,88887.0,88879.0,0.01125125]
[1766728264235,0.01148,88887.0,88878.0,0.01125137]
[1766728264433,0.02273023,88887.0,88878.0,0.01125137]
[1766728264659,0.01148,88887.0,88878.0,0.01125137]
[1766728264797,0.02273023,88887.0,88878.0,0.01125137]
[1766728265003,0.0002,88887.0,88879.0,0.01125125]
[1766728265532,0.0002,88887.0,88880.0,0.01125112]
[1766728266819,0.0002,88887.0,88879.0,0.01125125]
[1766728267019,0.0002,88887.0,88880.0,0.01125112]
[1766728267218,0.0002,88887.0,88881.0,0.01125099]
[1766728267801,0.0002,88887.0,88880.0,0.01125112]